[Event "61st Mongolian-ch Open 2023"]
[Site "Khovd"]
[Date "2023.05.27"]
[Round "8.3"]
[White "Gan-Erdene, Sugar"]
[Black "Bulgankhan Ganzorig"]
[Result "1-0"]
[ECO "B51"]
[WhiteElo "2420"]
[BlackElo "2017"]
[Annotator "TA"]
[PlyCount "125"]
[EventDate "2023.05.22"]
[EventType "tourn"]
[EventCountry "MGL"]
[SourceTitle "playchess.com"]
[Source "ChessBase"]
[SourceQuality "1"]
[TimeControl "40/5400+30:1800+30"]

{[%evp 18,125,43,42,37,28,33,33,34,31,33,29,29,23,16,16,47,24,33,31,44,10,67,66,93,52,83,91,87,63,79,24,29,31,41,15,54,-10,7,0,32,10,27,0,31,38,35,20,31,10,21,0,15,0,16,16,16,10,22,-39,-45,-186,-175,-179,-111,-113,-108,-104,-79,-97,-14,-11,-12,-10,65,66,65,0,51,0,0,0,0,-8,0,-8,-8,-43,-16,-17,-24,-38,-8,-31,-36,-39,0,0,0,0,0,0,395,384,1108,1083,891,883,1981,864]} 1. e4 {[%emt 0:00:02]} c5 {[%emt 0:00:55]} 2. Nf3 {[%emt 0:00:07]} a6 {[%emt 0:00:11]} 3. c4 {[%emt 0:13:28]} e6 {[%emt 0:00:07]} 4. Nc3 {[%emt 0:00:37]} b6 {[%emt 0:01:21]} 5. Be2 {[%emt 0:02:10]} Bb7 {[%emt 0:00:17]} 6. O-O {[%emt 0:03:42]} d6 {[%emt 0:00:11]} 7. d4 {[%emt 0:08:40]} cxd4 {[%emt 0:00:14]} 8. Nxd4 {[%emt 0:00:16]} Nf6 {[%emt 0:00:05]} 9. Re1 {[%emt 0:00:19]} Nbd7 {[%emt 0:02:48]} 10. Bf1 {[%emt 0:01:13]} Be7 {[%emt 0:06:56] B51: Sicilian: Moscow Variation (3 Bb5+) without 3...Bd7.} 11. b3 {[%emt 0:00:56]} O-O {[%emt 0:00:29]} 12. Bb2 {[%emt 0:01:12]} Rc8 {[%emt 0:00:59] White is slightly better.} 13. g3 {[%emt 0:06:15]} Qc7 {[%emt 0:01:44]} 14. Bg2 {[%emt 0:01:39]} Rfd8 {[%emt 0:02:11]} 15. Qe2 {[%emt 0:03:48]} Bf8 {[%emt 0:01:42]} 16. Rad1 {[%emt 0:00:58]} Qb8 {[%emt 0:01:51]} 17. Kh1 {[%emt 0:12:21]} Qa8 {[%emt 0:03:47]} 18. f3 {[%emt 0:06:07] [#]} Nc5 $146 {[%emt 0:11:19]} ({Predecessor:} 18... Qb8 19. Rc1 Qa7 20. Red1 Nc5 21. Rc2 h5 22. Rcd2 Qa8 23. Qe3 Re8 24. Nde2 Bc6 {1-0 Wagner,D (2340)-Radikovic,A (1996) Mediterranean Flower (Women) 20th 2020 (8)}) 19. Nc2 {[%emt 0:03:22]} a5 {[%emt 0:19:50]} (19... b5 $11) 20. Nd4 $14 {[%emt 0:04:17]} a4 {[%emt 0:00:21]} 21. Qc2 {[%emt 0:01:05]} Ne8 {[%emt 0:16:50]} 22. Bh3 {[%emt 0:10:58]} (22. Nxa4 Nxa4 23. bxa4 d5 $17) 22... Qa5 {[%emt 0:03:32]} 23. Ncb5 {[%emt 0:03:57][%cal Ob3b4]} (23. Nxa4 Nxa4 24. bxa4 Ra8 $11) 23... Qa8 {[%emt 0:03:24]} 24. Bc3 {[%emt 0:03:52]} (24. Re3 $16) 24... Nc7 $11 {[%emt 0:02:40]} 25. Nxc7 {[%emt 0:02:29]} Rxc7 {[%emt 0:00:15]} 26. Nb5 {[%emt 0:01:41]} Rc6 {[%emt 0:00:59]} 27. Bg2 {[%emt 0:02:46]} (27. Bd2 $14) 27... Rcc8 {[%emt 0:01:59]} 28. Nd4 {[%emt 0:03:12]} Nd7 {[%emt 0:01:16]} 29. Qd2 {[%emt 0:00:46]} (29. bxa4 Rxc4 30. a5 Rdc8 $17) 29... Nc5 {[%emt 0:02:09]} 30. Rb1 {[%emt 0:00:42]} Qb8 {[%emt 0:06:07]} (30... f5 $5 {[%cal Rf5e4]}) 31. Ba1 {[%emt 0:00:38]} Nd7 {[%emt 0:02:39]} 32. Qe3 {[%emt 0:01:26]} Re8 {[%emt 0:00:25]} 33. Bh3 {[%emt 0:00:39]} Ne5 {[%emt 0:01:53]} 34. Rbd1 {[%emt 0:00:21]} (34. bxa4 Nxc4 35. Qe2 d5 36. exd5 Bxd5 $17) 34... Rcd8 {[%emt 0:03:47]} 35. f4 {[%emt 0:00:47]} (35. bxa4 Nxc4 36. Qb3 d5 $17) 35... Nd7 {[%emt 0:00:12]} 36. Bg2 {[%emt 0:00:26]} e5 {[%emt 0:01:22]} 37. Nb5 {[%emt 0:00:40]} exf4 {[%emt 0:00:22]} 38. gxf4 {[%emt 0:00:31]} (38. Qxf4 $11 f6 39. Bd4 (39. Nxd6 Bxd6 40. Qxd6 Qxd6 $11) (39. bxa4 Qc8 $14)) 38... Nc5 $15 {[%emt 0:00:15]} 39. e5 {[%emt 0:01:02]} (39. Nc3 $1 $15 axb3 40. Qf2 (40. axb3 Nxb3 41. Bb2 Na5 $15)) 39... dxe5 {[%emt 0:00:44]} 40. fxe5 {[%emt 0:00:00]} Bxg2+ {[%emt 0:00:00]} (40... Qa8 $1 $19 41. Qe2 axb3 42. axb3 Nd3 {[%mdl 64] Deflection} 43. Rxd3 Rxd3 44. Qxd3 Bxg2+ 45. Kg1 Bc6) 41. Kxg2 $17 {[%emt 0:00:18]} axb3 {[%emt 0:00:49]} 42. axb3 {[%emt 0:00:05]} Re6 {[%emt 0:00:47]} 43. Qf3 {[%emt 0:01:27] [#]} Rg6+ {[%emt 0:00:52]} (43... Qa8 $1 $17 {[%cal Oc5e4] aiming for ...Ne4!} 44. Qxa8 Rxa8) 44. Kh1 $11 {[%emt 0:00:43]} Rxd1 {[%emt 0:06:33]} 45. Rxd1 {[%emt 0:00:05] [#]} Nxb3 {[%emt 0:00:08]} 46. Rf1 $14 {[%emt 0:08:35]} Bc5 $1 {[%emt 0:00:43]} 47. Qxf7+ {[%emt 0:14:14]} Kh8 {[%emt 0:00:14] ...Nd2 would be deadly.} 48. Bc3 {[%emt 0:03:05] Prevents Nd2} (48. Nd6 $1 $14 Qg8 49. Qd5) 48... Qg8 $1 $36 {[%emt 0:01:25][%mdl 2048] ( -> ...Qxf7). Black is pushing.} 49. Qd5 {[%emt 0:00:57] And now Nc7 would win. Active counter play!} h6 $1 {[%emt 0:01:16]} 50. Qxg8+ {[%emt 0:02:06]} Kxg8 {[%emt 0:00:09]} 51. Nc7 {[%emt 0:00:54]} Rg4 {[%emt 0:02:51]} 52. Nd5 {[%emt 0:03:43]} (52. Rb1 $5 {[%cal Rh2h3]} Na5 53. Bxa5 bxa5 54. e6 $15) 52... Re4 {[%emt 0:03:22]} 53. Rb1 {[%emt 0:00:11]} Nd4 {[%emt 0:03:56]} 54. Nxb6 {[%emt 0:00:56]} Ne2 {[%emt 0:00:58]} 55. Ba1 {[%emt 0:00:38]} Nf4 {[%emt 0:01:12] Hoping for ...Bxb6.} 56. Nd5 {[%emt 0:00:31]} Nd3 {[%emt 0:00:40]} 57. Kg2 {[%emt 0:00:26]} Nxe5 {[%emt 0:01:24]} 58. Bxe5 {[%emt 0:00:04]} Rxe5 {[%emt 0:00:06] KRB-KRN} 59. Kf3 {[%emt 0:00:39]} Rh5 $2 {[%emt 0:00:16][%mdl 8192]} (59... Rf5+ $11 {and Black stays safe.} 60. Ke2 Rf2+ 61. Kd3 Rxh2) 60. Rb5 $18 {[%emt 0:00:24]} Rf5+ $2 {[%emt 0:02:51]} (60... Kf7 61. Rxc5 Rxh2 62. Rc7+ Ke6 63. Rxg7 Ke5) 61. Ke4 {[%emt 0:00:06] White is clearly winning.} Rf2 {[%emt 0:00:11]} 62. Rxc5 {[%emt 0:00:04]} Rxh2 {[%emt 0:00:04]} 63. Rc7 {[%emt 0:00:34] What a bad dream for Black.   Weighted Error Value: White=0.17 (very precise) /Black=0.28 (precise)} (63. Rc8+ $142 Kf7 64. c5) 1-0

[Event "61st Mongolian-ch Open 2023"]
[Site "Khovd"]
[Date "2023.05.27"]
[Round "8.4"]
[White "Munguntuul, Batkhuyag"]
[Black "Chinguun, Sumiya"]
[Result "0-1"]
[ECO "B90"]
[WhiteElo "2408"]
[BlackElo "2298"]
[Annotator "TA"]
[PlyCount "94"]
[EventDate "2023.05.22"]
[EventType "tourn"]
[EventCountry "MGL"]
[SourceTitle "playchess.com"]
[Source "ChessBase"]
[SourceQuality "1"]
[TimeControl "40/5400+30:1800+30"]

{[%evp 10,94,28,7,7,13,13,14,0,-17,-9,-64,-48,-45,-48,-49,-42,-59,-90,-70,-27,-27,-25,-23,-31,-21,-10,-6,-8,-14,0,-51,-65,-130,-114,-84,-70,-61,-82,-83,-72,-70,-76,-85,-57,-63,-70,-56,-37,-141,-148,-133,-132,-132,-142,-129,-134,-206,-141,-160,-31,-175,-181,-180,-164,-187,-172,-170,-104,-113,-109,-105,-89,-85,-77,-686,-667,-802,-802,-780,-772,-742,-758,-580,-667,-1136,-1167]} 1. e4 {[%emt 0:00:01]} c5 {[%emt 0:00:07]} 2. Nf3 {[%emt 0:00:03]} d6 {[%emt 0:00:14]} 3. d4 {[%emt 0:00:04]} cxd4 {[%emt 0:00:19]} 4. Nxd4 {[%emt 0:00:02]} Nf6 {[%emt 0:00:09]} 5. Nc3 {[%emt 0:00:13]} a6 {[%emt 0:00:05]} 6. Nb3 {[%emt 0:00:05]} g6 {[%emt 0:00:34] B90: Sicilian Najdorf: Unusual White 6th moves, 6 Be3 Ng4 and 6 Be3 e5.} 7. Be2 {[%emt 0:03:42]} Bg7 {[%emt 0:00:28]} 8. Be3 {[%emt 0:00:10][%cal Oe4e5] now scores much better than the old 8.g4.} Nbd7 {[%emt 0:00:17] The position is equal.} 9. g4 {[%emt 0:01:12]} h5 {[%emt 0:00:34] Hoping for ...hxg4.} 10. gxh5 {[%emt 0:04:47]} ({Better is} 10. g5 $11 Ng4 11. Bd2) 10... Nxh5 $15 {[%emt 0:00:36]} 11. Qd2 {[%emt 0:00:30]} b5 {[%emt 0:02:04]} 12. O-O-O {[%emt 0:01:06]} Bb7 {[%emt 0:15:52]} 13. Nd5 {[%emt 0:10:58]} Rc8 {[%emt 0:16:39]} 14. f3 {[%emt 0:10:12][%cal Bf2f3,Bf3f4][%mdl 32] [#]} Ne5 $146 {[%emt 0:13:56]} (14... Bxd5 {looks sharper.} 15. Qxd5 Qc7 16. Qd2 Nb6) ({Predecessor:} 14... Bxd5 15. exd5 Nb6 16. Kb1 Nf6 17. Bxb6 Qxb6 18. f4 Ne4 19. Qe1 Nf2 20. Qg1 Rb8 {0-1 Kadric,D (2500)-Ruiz Castillo,J (2379) Texas Collegiate Super Finals 2017 (2.2)}) 15. Na5 {[%emt 0:12:44]} Bxd5 {[%emt 0:05:59]} 16. exd5 {[%emt 0:00:20]} Nf6 {[%emt 0:07:47]} 17. f4 {[%emt 0:03:42]} Ne4 {[%emt 0:16:14]} (17... Nc4 {simplifies} 18. Nxc4 bxc4 19. Qb4 Qc7) 18. Qb4 {[%emt 0:00:46][%cal Of4e5]} Qc7 $1 {[%emt 0:00:11][%csl Gc8][%cal Rc7c2]} 19. c3 {[%emt 0:06:22]} (19. fxe5 $2 Qxc2#) ({Much worse is} 19. Qxe4 f5 20. Bxb5+ Kf8 $17) 19... Nd7 {[%emt 0:03:06][%cal Re4c3] And now ...Nxc3! would win.} 20. Nc6 {[%emt 0:04:51]} (20. Qxe4 $11 Qxa5 21. Kb1) 20... Nef6 {[%emt 0:00:31]} 21. c4 {[%emt 0:14:46]} (21. Bf3 $15) 21... bxc4 {[%emt 0:01:04]} 22. Bxc4 {[%emt 0:00:05]} Nb8 {[%emt 0:00:14]} 23. Na5 {[%emt 0:00:11]} Rh3 {[%emt 0:02:54]} 24. Bb6 {[%emt 0:11:05]} Qd7 {[%emt 0:00:07] White must now prevent ...Qf5.} 25. Kb1 {[%emt 0:00:23]} Kf8 $36 {[%emt 0:02:20][%mdl 2048] Black has strong initiative.} 26. Ka1 {[%emt 0:01:13]} Qf5 {[%emt 0:01:12]} 27. Ba7 {[%emt 0:01:18]} Nbd7 {[%emt 0:01:54]} 28. Nc6 {[%emt 0:01:08]} Qxf4 {[%emt 0:00:35]} (28... Re8 {seems wilder.} 29. Qd2 Ne4 30. Qc2 Qxf4 31. Bf1 Ra3) 29. Bxa6 {[%emt 0:00:05]} (29. Bd4 $15) 29... Qxb4 $17 {[%emt 0:00:43]} 30. Nxb4 {[%emt 0:00:02]} Ra8 {[%emt 0:00:44]} 31. Bd4 {[%emt 0:03:30]} Ne4 {[%emt 0:01:44]} 32. Kb1 {[%emt 0:02:01]} f5 {[%emt 0:00:58] Black is more active.} 33. Bb5 {[%emt 0:01:48]} (33. Bf1 $17 Rh4 34. Nc6) 33... Ndc5 {[%emt 0:00:29]} 34. Nc6 {[%emt 0:00:25]} f4 {[%emt 0:02:15]} ({Black should play} 34... Bxd4 $17 35. Rxd4 Kf7) 35. Nxe7 {[%emt 0:05:00]} Kxe7 $19 {[%emt 0:01:14][%cal Bf8e7,Be7f7,Bf7g8][%mdl 32]} 36. Bxg7 {[%emt 0:00:03]} Nf2 $1 {[%emt 0:00:02][%csl LRd1,LRh1]} 37. Rde1+ {[%emt 0:01:52]} Kf7 {[%emt 0:00:32]} 38. Rhf1 {[%emt 0:01:12]} Nfd3 {[%emt 0:00:36]} (38... Nfe4 $19 39. Rxf4+ Kxg7 40. Rfxe4 Nxe4 41. Rxe4 Rxh2 42. Re7+ Kh8) 39. Bc3 $17 {[%emt 0:00:31]} Nxe1 {[%emt 0:00:29]} 40. Rxf4+ {[%emt 0:00:00]} Kg8 $1 {[%emt 0:00:00]} 41. Bxe1 {[%emt 0:01:42] Threatens to win with Bg3. A strong pair of Bishops.} Rxh2 {[%emt 0:02:25]} 42. Rf1 $2 {[%emt 0:02:45][%mdl 8192] [#]} (42. Bc3 $17) 42... Rb8 $1 $19 {[%emt 0:01:17] Black is clearly winning.} 43. a4 {[%emt 0:06:11] [#]} Nxa4 $1 {[%emt 0:00:05][%mdl 512]} 44. Bxa4 {[%emt 0:00:03]} Rbxb2+ {[%emt 0:00:06]} 45. Kc1 {[%emt 0:00:05]} Ra2 {[%emt 0:00:04][%cal Ra2a1]} 46. Bc3 {[%emt 0:00:20] Against Ra1+} Rxa4 {[%emt 0:00:08]} 47. Rf6 {[%emt 0:00:03]} Rg4 {[%emt 0:00:08] Weighted Error Value: White=0.47/Black=0.12 (very precise)} 0-1

[Event "61st Mongolian-ch Open 2023"]
[Site "Khovd"]
[Date "2023.05.27"]
[Round "8.5"]
[White "Munkhgal, Gombosuren"]
[Black "Ulziikhishig Khishigbat"]
[Result "1-0"]
[ECO "D35"]
[WhiteElo "2463"]
[BlackElo "1601"]
[Annotator "TA"]
[PlyCount "99"]
[EventDate "2023.05.22"]
[EventType "tourn"]
[EventCountry "MGL"]
[SourceTitle "playchess.com"]
[Source "ChessBase"]
[SourceQuality "1"]
[TimeControl "40/5400+30:1800+30"]

{[%evp 18,99,29,31,43,45,50,35,50,50,42,42,42,42,60,60,74,74,83,77,114,23,25,27,84,75,114,93,109,109,109,109,84,101,144,137,144,133,144,144,151,147,160,162,152,139,254,256,362,293,384,384,384,381,374,347,443,443,443,443,443,443,740,739,680,689,689,615,854,800,669,435,1120,1047,2750,1770,29973,29975,29975,5052,29979,29980,29980,29981]} 1. d4 {[%emt 0:00:02]} Nf6 {[%emt 0:00:10]} 2. c4 {[%emt 0:00:07]} e6 {[%emt 0:00:09]} 3. Nc3 {[%emt 0:00:03]} d5 {[%emt 0:00:19]} 4. cxd5 {[%emt 0:00:07]} exd5 {[%emt 0:01:25]} 5. Bg5 {[%emt 0:00:05]} c6 {[%emt 0:00:07]} 6. e3 {[%emt 0:00:05]} Bf5 {[%emt 0:00:06]} 7. Qf3 {[%emt 0:00:21]} Bg6 {[%emt 0:00:05]} 8. Bxf6 {[%emt 0:00:09]} Qxf6 {[%emt 0:00:05]} 9. Qxf6 gxf6 10. Nf3 {[%emt 0:03:31]} Bd6 {D35: Queen's Gambit Declined: Exchange Variation.} 11. Nh4 {[%emt 1:31:30]} Nd7 {[%emt 0:06:57]} 12. f4 {[%emt 0:00:00][%cal Bf2f4,Bf4f5][%mdl 32] [#]} h6 $146 {[%emt 0:00:30] White is slightly better.} ({Predecessor:} 12... f5 13. Bd3 O-O-O 14. Nxf5 Bxf5 15. Bxf5 Kc7 16. Rc1 Bb4 17. Kf2 Bxc3 18. Rxc3 Nf6 {½-½ Birovecz,B (1912)-Barasits,B (2022) HUN-ch U18 Balatonlelle 2019 (5)}) 13. f5 {[%emt 0:00:00]} Bh7 {[%emt 0:09:11]} 14. Rc1 {[%emt 0:00:00]} Rg8 {[%emt 0:11:09]} 15. Kf2 {[%emt 0:00:00]} Nb6 {[%emt 0:04:04]} 16. Be2 {[%emt 0:00:00]} Kd7 {[%emt 0:04:09]} 17. g4 {[%emt 0:00:00]} Rae8 {[%emt 0:02:54]} 18. Ng2 {[%emt 0:00:00]} Nc8 {[%emt 0:15:09]} 19. Nf4 {[%emt 0:00:00]} (19. Bf3 $16) 19... Bxf4 $11 {[%emt 0:00:19]} 20. exf4 {[%emt 0:00:00]} Nd6 {[%emt 0:00:07]} (20... Rxe2+ $1 $11 {remains equal.} 21. Nxe2 (21. Kxe2 Rxg4 22. Rhg1 Bxf5 $11) 21... Rxg4) 21. Bf3 $16 {[%emt 0:00:00] White leaves nothing to chance now.} b5 {[%emt 0:03:27]} 22. Rhe1 {[%emt 0:00:00]} Rxe1 {[%emt 0:00:56]} 23. Rxe1 {[%emt 0:00:00]} Re8 {[%emt 0:01:06]} 24. Ne2 {[%emt 0:00:00]} h5 {[%emt 0:08:55] ...hxg4 would be deadly.} 25. h3 {[%emt 0:00:00]} b4 {[%emt 0:04:40]} 26. Rd1 {[%emt 0:00:00]} (26. gxh5 $6 Bxf5 27. Bg4 Be6 $11) 26... h4 {[%emt 0:02:17] [#] Prevents Ng3.} 27. Nc1 $1 {[%emt 0:00:00]} Nc4 {[%emt 0:03:50]} 28. Nd3 {[%emt 0:00:00]} a5 {[%emt 0:01:57]} 29. Be2 {[%emt 0:00:00] Nc5+ is the strong threat.} Kd6 {[%emt 0:04:00]} 30. b3 {[%emt 0:00:00]} Ne3 {[%emt 0:01:06]} 31. Rd2 {[%emt 0:00:00][%cal Od3e5]} Re7 {[%emt 0:07:21] Repels Ne5} (31... Nxf5 $16 {might work better.} 32. gxf5 Bxf5) 32. Ne5 $18 {[%emt 0:00:00]} c5 {[%emt 0:01:57]} (32... Bxf5 $142 33. gxf5 (33. Kxe3 Bd7 $16) 33... Nxf5) 33. Nxf7+ {[%emt 0:00:00]} (33. Kxe3 cxd4+ 34. Kxd4 fxe5+ 35. fxe5+ Rxe5 $18) 33... Rxf7 {[%emt 0:00:01]} 34. dxc5+ {[%emt 0:00:00]} (34. Kxe3 Re7+ 35. Kf2 cxd4 $16) 34... Kxc5 35. Kxe3 {[%emt 0:00:00][%cal Od2d5][%mdl 4096] Endgame Strongly threatening Rxd5+! KRB-KRB} Re7+ {[%emt 0:01:47]} 36. Kd3 {[%emt 0:00:00]} Bg8 {[%emt 0:01:11]} 37. Rc2+ {[%emt 0:00:00]} Kd6 {[%emt 0:00:20]} 38. Rc8 {[%emt 0:00:00] Prevents d4} Bf7 {[%emt 0:00:08]} 39. g5 {[%emt 0:00:00][%cal Bg4g5,Bg5g6][%mdl 32]} d4 {[%emt 0:02:19]} (39... a4 $142 40. bxa4 d4) 40. g6 {[%emt 0:00:00]} Bd5 {[%emt 0:00:00]} 41. Bg4 {[%emt 0:00:00]} (41. Kxd4 Rxe2 42. Rd8+ Kc6 43. Rc8+ Kd6 44. Rd8+ Kc6 45. Rc8+ Kd6 $11) 41... a4 {[%emt 0:00:32]} 42. Kxd4 {[%emt 0:00:00] Black must now prevent Rd8+.} axb3 {[%emt 0:00:33]} 43. axb3 {[%emt 0:00:00] Threatening mate with Rd8+.} (43. Rd8+ $2 Kc7 44. axb3 (44. Rxd5 $2 {perishes.} b2 $19) 44... Kxd8 $19) 43... Bxb3 {[%emt 0:00:14]} 44. Rb8 {[%emt 0:00:00]} Bc2 {[%emt 0:01:00]} (44... Rd7 $142) 45. Rb6+ {[%emt 0:00:00][%mdl 64] [#] Skewer} (45. Rxb4 Re4+ 46. Kc3 Rxb4 $11) 45... Kd7 {[%emt 0:00:37]} 46. g7 {[%emt 0:00:00]} ({Not} 46. Rxb4 Re4+ 47. Kc5 Rxb4 48. Kxb4 Ke7 $16) 46... Bb3 {[%emt 0:00:26]} 47. Rxb4 {[%emt 0:00:00]} Bg8 {[%emt 0:00:02]} 48. Rb8 {[%emt 0:00:00]} (48. Rb7+ $142 Kd6 49. Rxe7 Kxe7 50. Be2 Bh7 51. Bc4 Kd6 52. Bd5 Kc7 53. Kc5) 48... Re8 {[%emt 0:00:15]} 49. Rxe8 {[%emt 0:00:00]} Kxe8 {[%emt 0:00:01]} 50. Bf3 {[%emt 0:00:00] Weighted Error Value: White=0.16 (very precise) /Black=0.51} 1-0

[Event "61st Mongolian-ch Open 2023"]
[Site "Khovd"]
[Date "2023.05.27"]
[Round "8.6"]
[White "Erdene, Ganzorig"]
[Black "Bilguun, Sumiya"]
[Result "0-1"]
[ECO "D36"]
[WhiteElo "2278"]
[BlackElo "2474"]
[Annotator "TA"]
[PlyCount "40"]
[EventDate "2023.05.22"]
[EventType "tourn"]
[EventCountry "MGL"]
[SourceTitle "playchess.com"]
[Source "ChessBase"]
[SourceQuality "1"]
[TimeControl "40/5400+30:1800+30"]

{[%evp 19,40,-8,0,-17,-14,-33,-25,-25,-17,-60,-48,-60,-58,-72,-59,-70,-61,-127,-133,-300,-302,-290,-287]} 1. d4 {[%emt 0:00:03]} Nf6 {[%emt 0:00:06]} 2. c4 {[%emt 0:00:05]} e6 {[%emt 0:00:06]} 3. Nf3 {[%emt 0:00:05]} d5 {[%emt 0:00:04]} 4. cxd5 {[%emt 0:00:13]} exd5 {[%emt 0:00:10]} 5. Nc3 {[%emt 0:00:04]} c6 {[%emt 0:00:23]} 6. Bg5 {[%emt 0:00:10]} Be7 {[%emt 0:00:08]} 7. Qc2 {[%emt 0:00:10]} g6 {[%emt 0:00:09]} 8. e4 {[%emt 0:02:54]} dxe4 {[%emt 0:02:30]} 9. Bxf6 {[%emt 0:00:13]} Bxf6 {[%emt 0:00:12]} 10. Qxe4+ {[%emt 0:00:07]} Qe7 {[%emt 0:07:18]} 11. Qxe7+ {[%emt 0:00:19] D36: Queen's Gambit Declined: Exchange Variation: Main line (5 Bg5 c6 6 Qc2).} Kxe7 {[%emt 0:01:33]} 12. O-O-O {[%emt 0:05:10]} (12. Bc4 $5) 12... Rd8 {[%emt 0:05:07]} 13. Bc4 {[%emt 0:02:15] Black has an edge.} Bg4 {[%emt 0:04:45] [#]} (13... b5 $5 {[%cal Rb5c4]} 14. Bb3 Bg4 $11) 14. Rd3 $146 {[%emt 0:09:16]} ({Predecessor:} 14. Ne4 Bxf3 15. gxf3 Rxd4 16. Rxd4 Bxd4 17. Re1 Nd7 18. Ng5+ Kf6 19. Nxh7+ Kg7 20. Ng5 {0-1 Budnikov,O (2373)-Baryshpolets,A (2544) Lutsk Nebesna Sotnya Memorial blitz 2015 (17)}) 14... Kf8 {[%emt 0:20:56]} 15. Ne4 {[%emt 0:08:42]} Bg7 {[%emt 0:08:30] A strong pair of Bishops.} 16. Re1 {[%emt 0:08:47]} b5 {[%emt 0:09:05]} 17. Bb3 {[%emt 0:00:08]} Na6 {[%emt 0:09:46][%cal Oc6c5]} (17... c5 $5 {[%cal Rc5c4]} 18. Nfg5 (18. Nxc5 Nc6 $17) 18... Bh6 $15) 18. h3 {[%emt 0:05:45]} ({Better is} 18. Nfg5 $15 Bh6 19. h4) 18... Bf5 $17 {[%emt 0:01:07] And now ...Bxe4 would win.} 19. g4 $2 {[%emt 0:00:36] [#]} (19. Rc3 $17 {is a better defense.}) 19... Bxe4 $19 {[%emt 0:00:19]} 20. Rxe4 {[%emt 0:00:23]} Nc5 {[%emt 0:00:09] White got outplayed after the opening.   Weighted Error Value: White=0.41/Black=0.04 (flawless)} 0-1

[Event "61st Mongolian-ch Open 2023"]
[Site "Khovd"]
[Date "2023.05.28"]
[Round "9.1"]
[White "Ulziikhishig Khishigbat"]
[Black "Erdene, Ganzorig"]
[Result "1-0"]
[ECO "D07"]
[WhiteElo "1601"]
[BlackElo "2278"]
[Annotator "TA"]
[PlyCount "55"]
[EventDate "2023.05.22"]
[EventType "tourn"]
[EventCountry "MGL"]
[SourceTitle "playchess.com"]
[Source "ChessBase"]
[SourceQuality "1"]
[TimeControl "40/5400+30:1800+30"]

{[%evp 14,55,54,55,78,64,72,39,40,39,69,59,97,79,85,65,333,344,351,357,389,388,412,385,468,455,772,459,457,450,450,301,361,308,419,412,397,340,432,422,735,720,693,511]} 1. d4 {[%emt 0:00:04]} d5 {[%emt 0:00:05]} 2. c4 {[%emt 0:00:06]} Nc6 {[%emt 0:00:07]} 3. Nc3 {[%emt 0:00:14]} Nf6 {[%emt 0:00:20]} 4. Nf3 {[%emt 0:01:10]} Bg4 {[%emt 0:01:49]} 5. cxd5 {[%emt 0:04:51]} Bxf3 {[%emt 0:01:55]} 6. dxc6 {[%emt 0:03:15]} Bxc6 {[%emt 0:00:07]} 7. f3 {[%emt 0:00:32]} e6 {[%emt 0:07:45]} 8. e4 {[%emt 0:00:33]} Be7 {[%emt 0:00:11] D07: Queen's Gambit: Chigorin Defence.} 9. Be3 {[%emt 0:00:22]} a6 {[%emt 0:01:24] [#]} 10. a4 $146 {[%emt 0:07:04]} ({Predecessor:} 10. Be2 O-O 11. Qc2 b5 12. O-O Bb7 13. a4 b4 14. Na2 Qb8 15. Nc1 Nd7 16. Nb3 {½-½ Burlov,V (2350)-Demidov,M (2404) Moscow Itkin Memorial-B 2011 (6)}) 10... O-O {[%emt 0:03:19] White is slightly better.} 11. Bd3 {[%emt 0:02:19]} Rb8 {[%emt 0:01:31]} 12. O-O {[%emt 0:01:05]} Qd7 {[%emt 0:07:15]} 13. Qc2 {[%emt 0:02:01]} h6 {[%emt 0:00:21]} 14. Ne2 {[%emt 0:00:57][%cal Od4d5]} Nh7 $2 {[%emt 0:09:07][%mdl 8192] [#] This move loses the game for Black.} (14... Nh5 $14) 15. d5 $1 $18 {[%emt 0:00:35][%mdl 512]} Rfd8 {[%emt 0:03:47]} (15... exd5 16. exd5) 16. Rfd1 {[%emt 0:00:25]} (16. dxc6 Qxd3 17. Qxd3 Rxd3 $18) 16... Bxa4 {[%emt 0:01:05]} 17. Rxa4 {[%emt 0:00:46][%cal Ba1a4,Ba4g4,Bg4d4][%mdl 32]} (17. Qxa4 Qxa4 18. Rxa4 exd5 19. exd5 Nf6 $18) 17... exd5 {[%emt 0:00:11]} 18. e5 {[%emt 0:00:24]} Nf8 {[%emt 0:00:42]} 19. Rg4 {[%emt 0:00:37] Inhibits c5.} Qe6 {[%emt 0:01:23]} (19... Bg5 $142 20. Bxg5 hxg5) 20. Bf5 {[%emt 0:00:19]} Qc6 {[%emt 0:00:45]} 21. Qd2 {[%emt 0:00:54]} h5 {[%emt 0:00:31]} 22. Rd4 {[%emt 0:04:05]} g6 {[%emt 0:02:38]} 23. Bh3 {[%emt 0:02:22][%cal Oe2f4] And now Nf4! would win.} Qb6 {[%emt 0:04:10]} 24. Nc3 {[%emt 0:02:03]} ({Not} 24. Rxd5 Rxd5 25. Bxb6 Rxd2 26. Rxd2 cxb6 $15) 24... c6 {[%emt 0:03:03]} 25. Rxd5 {[%emt 0:02:14][%mdl 64] [#] Discovered Attack} Qc7 {[%emt 0:00:07]} 26. Rd6 {[%emt 0:00:07] White is clearly winning.} ({Weaker is} 26. Rxd8 Rxd8 27. Qe2 (27. Bd4 c5 $17) 27... Rxd1+ 28. Nxd1 (28. Qxd1 Qxe5 29. Qe2 Bc5 $18) 28... Qxe5 $18) 26... Bxd6 {[%emt 0:09:02]} (26... f6 $142 27. Ne4 fxe5) 27. exd6 {[%emt 0:00:07]} Qa5 {[%emt 0:00:08] Black is weak on the dark squares} 28. Bg5 {[%emt 0:00:25] Weighted Error Value: White=0.43/Black=0.55} 1-0